fUSD/lending_fUSD_20260108
["ID","MTS","AMOUNT","RATE_DAILY","PERIOD"]
[401060128,1767897032202,-500.0,0.00012175,2]
[401060129,1767897032212,-500.0,0.00012175,2]
[401060130,1767897032221,-500.0,0.00012175,2]
[401060132,1767897032231,-500.0,0.00012175,2]
[401060134,1767897032240,-500.0,0.00012175,2]
[401060136,1767897032249,-500.0,0.00012175,2]
[401060138,1767897032259,-500.0,0.00012175,2]
[401060140,1767897032268,-500.0,0.00012175,2]
[401060142,1767897032278,-500.0,0.00012175,2]
[401060144,1767897032287,-500.0,0.00012175,2]
[401060146,1767897032297,-500.0,0.00012175,2]
[401060148,1767897032307,-500.0,0.00012175,2]
[401060150,1767897032316,-500.0,0.00012175,2]
[401060152,1767897032325,-500.0,0.00012175,2]
[401060154,1767897032335,-500.0,0.00012175,2]
[401060156,1767897032344,-500.0,0.00012175,2]
[401060159,1767897032354,-500.0,0.00012175,2]
[401060161,1767897032364,-341.59193726,0.00012175,2]
[401060163,1767897032373,-500.0,0.00012175,2]
[401060165,1767897032382,-500.0,0.00012177,2]
[401060167,1767897032392,-268.01094965,0.00012179,2]
[401060169,1767897032401,-397.70001745,0.00012179,2]
[401060171,1767897032411,-473.11497108,0.00012179,2]
[401060173,1767897032421,-500.0,0.00012179,2]
[401060175,1767897032430,-500.0,0.00012179,2]
[401060177,1767897032439,-520.1597796,0.00012179,2]
[401060179,1767897032448,-333.52,0.00012179,2]
[401060181,1767897032458,-1442.959,0.00012179,2]
[401060183,1767897032467,-167.203,0.00012179,2]
[401060185,1767897032477,-3087.83301536,0.0001218,2]
[401060187,1767897032489,-8531.1857155,0.0001218,2]
[401060189,1767897032501,-4035.05288234,0.0001218,2]
[401060191,1767897032512,-4031.53528395,0.0001218,2]
[401060193,1767897032523,-300.0,0.0001218,2]
[401060199,1767897032563,-9126.90000001,0.0001218,2]
[401060203,1767897032592,-4457.04260284,0.0001218,2]
[401060205,1767897032601,-6705.0045,0.00012182,2]
[401060207,1767897032612,-7179.13068106,0.00012182,2]
[401060213,1767897032665,-625.32187535,0.00012182,2]
[401060216,1767897032676,-178.67812465,0.00012275,2]
[401060218,1767897032687,-321.32187535,0.00012275,2]
[401060220,1767897032696,-500.0,0.00012275,2]
[401060222,1767897032706,-237.03265591,0.00012275,2]
[401060224,1767897032715,-505.93123413,0.00012275,2]
[401060226,1767897032724,-200.0,0.00012275,2]
[401060228,1767897032733,-157.35456451,0.00012275,2]
[401060230,1767897032743,-151.0,0.00012275,2]
[401060232,1767897032752,-151.0,0.00012275,2]
[401060234,1767897032761,-151.0,0.00012275,2]
[401060236,1767897032770,-151.0,0.00012275,2]
[401060238,1767897032779,-151.0,0.00012275,2]
[401060240,1767897032789,-151.0,0.00012275,2]
[401060242,1767897032798,-151.0,0.00012275,2]
[401060244,1767897032809,-151.0,0.00012275,2]
[401060246,1767897032818,-151.0,0.00012275,2]
[401060248,1767897032827,-151.0,0.00012275,2]
[401060250,1767897032836,-151.0,0.00012275,2]
[401060252,1767897032846,-130.95967004,0.00012275,2]
[401060259,1767897032903,-20.04032996,0.00012275,2]
[401060261,1767897032913,-303.0076701,0.00012275,2]
[401060350,1767897039331,-1810.68878487,0.00012275,2]
[401060353,1767897039347,-1360.80344322,0.00012275,2]
[401060355,1767897039359,-2171.2067863,0.00012275,2]
[401060357,1767897039371,-1146.58616103,0.00012275,2]
[401060362,1767897039411,-2585.93715448,0.00012275,2]
[401060364,1767897039421,-768.41768377,0.00012282,2]
[401060366,1767897039432,-9231.57231623,0.00012282,2]
[401060368,1767897039442,-999.99,0.00012282,2]
[401060370,1767897039451,-12328.59628656,0.00012282,2]
[401060528,1767897040859,-25706.86371344,0.00012282,2]
[401060530,1767897040868,-462.54,0.00012282,2]
[401060532,1767897040878,-978.83,0.00012416,2]
[401060534,1767897040887,-333.52,0.00012453,2]
[401060536,1767897040896,-150.0,0.00012594,2]
[401060538,1767897040905,-333.52,0.00012727,2]
[401060540,1767897040914,-7804.45255636,0.00012817,2]
[401060542,1767897040923,-193.80168797,0.00012919,2]
[401060544,1767897040932,-333.52,0.00013001,2]
[401060546,1767897040942,-1000.0,0.00013151,2]
[401060548,1767897040951,-255.0,0.00013257,2]
[401060550,1767897040961,-333.53209656,0.00013275,2]
[401060552,1767897040970,-419.0,0.00013343,2]
[401060554,1767897040980,-480.0,0.00013363,2]
[401060556,1767897040989,-1680.0,0.00013391,2]
[401060558,1767897040998,-14136.36741068,0.00013414,2]
[401060559,1767897041007,-7804.45255636,0.00013453,2]
[401060562,1767897041017,-6807.16,0.00013514,2]
[401060563,1767897041026,-166.66,0.00013567,2]
[401060565,1767897041036,-500.0,0.00013698,2]
[401060567,1767897041045,-500.0,0.00013698,2]
[401060569,1767897041054,-500.0,0.00013698,2]
[401060571,1767897041064,-500.0,0.00013698,2]
[401060573,1767897041074,-502.10445571,0.00013698,2]
[401060575,1767897041083,-500.0,0.00013698,2]
[401060577,1767897041092,-500.0,0.00013698,2]
[401060579,1767897041101,-500.0,0.00013698,2]
[401060581,1767897041111,-500.0,0.00013698,2]
[401060583,1767897041120,-500.0,0.00013698,2]
[401060585,1767897041129,-500.0,0.00013698,2]
[401060587,1767897041138,-500.0,0.00013698,2]
[401060589,1767897041147,-500.0,0.00013698,2]
[401060591,1767897041156,-500.0,0.00013698,2]
[401060593,1767897041165,-500.0,0.00013698,2]
[401060595,1767897041174,-500.0,0.00013698,2]
[401060597,1767897041183,-500.0,0.00013698,2]
[401060599,1767897041192,-500.0,0.00013698,2]
[401060601,1767897041201,-500.0,0.00013698,2]
[401060603,1767897041210,-500.0,0.00013698,2]
[401060605,1767897041220,-500.0,0.00013698,2]
[401060607,1767897041229,-500.0,0.00013698,2]
[401060609,1767897041238,-500.0,0.00013698,2]
[401060611,1767897041247,-500.0,0.00013698,2]
[401060612,1767897041256,-931.94,0.00013698,2]
[401060615,1767897041267,-931.94,0.00013698,2]
[401060617,1767897041278,-931.94,0.00013698,2]
[401060619,1767897041287,-931.94,0.00013698,2]
[401060621,1767897041297,-500.0,0.00013698,2]
[401060623,1767897041306,-522.96995118,0.00013698,2]
[401060625,1767897041315,-500.0,0.00013698,2]
[401060627,1767897041325,-500.0,0.00013698,2]
[401060629,1767897041334,-500.0,0.00013698,2]
[401060631,1767897041343,-500.0,0.00013698,2]
[401060633,1767897041352,-414.08933578,0.00013698,2]
[401060634,1767897041361,-537.05653843,0.00013698,2]
[401060636,1767897041372,-500.0,0.00013698,2]
[401060638,1767897041381,-500.0,0.00013698,2]
[401060641,1767897041391,-500.0,0.00013698,2]
[401060643,1767897041400,-500.0,0.00013698,2]
[401060644,1767897041410,-500.0,0.00013698,2]
[401060647,1767897041420,-500.0,0.00013698,2]
[401060649,1767897041430,-500.0,0.00013698,2]
[401060651,1767897041439,-500.0,0.00013698,2]
[401060653,1767897041449,-500.0,0.00013698,2]
[401060655,1767897041458,-500.0,0.00013698,2]
[401060656,1767897041468,-500.0,0.00013698,2]
[401060659,1767897041477,-500.0,0.00013698,2]
[401060660,1767897041487,-500.0,0.00013698,2]
[401060662,1767897041496,-500.0,0.00013698,2]
[401060664,1767897041506,-500.0,0.00013698,2]
[401060666,1767897041515,-500.0,0.00013698,2]
[401060669,1767897041524,-516.18277591,0.00013698,2]
[401060670,1767897041533,-500.0,0.00013698,2]
[401060672,1767897041543,-500.0,0.00013698,2]
[401060675,1767897041554,-600.85,0.00013698,2]
[401060677,1767897041563,-600.85,0.00013698,2]
[401060678,1767897041574,-600.85,0.00013698,2]
[401060681,1767897041584,-600.85,0.00013698,2]
[401060682,1767897041597,-709.3,0.00013699,2]
[401060684,1767897041607,-166.66,0.00013853,2]
[401060686,1767897041627,-14136.36741063,0.00013912,2]
[401060688,1767897041643,-7804.45255636,0.00014088,2]
[401060690,1767897041652,-500.0,0.00014136,2]
[401060692,1767897041661,-500.0,0.00014136,2]
[401060694,1767897041671,-150.0,0.00014136,2]
[401060696,1767897041681,-150.0,0.00014136,2]
[401060698,1767897041690,-150.0,0.00014136,2]
[401060700,1767897041699,-150.0,0.00014136,2]
[401060702,1767897041708,-150.0,0.00014136,2]
[401060704,1767897041717,-500.0,0.00014136,2]
[401060706,1767897041726,-500.0,0.00014136,2]
[401060708,1767897041735,-150.0,0.00014136,2]
[401060709,1767897041744,-150.0,0.00014136,2]
[401060710,1767897041754,-500.0,0.00014136,2]
[401060711,1767897041762,-150.0,0.00014136,2]
[401060712,1767897041771,-150.0,0.00014136,2]
[401060714,1767897041781,-150.0,0.00014136,2]
[401060715,1767897041790,-166.66,0.00014138,2]
[401060718,1767897041799,-500.0,0.00014191,2]
[401060719,1767897041809,-500.0,0.00014191,2]
[401060721,1767897041818,-150.0,0.00014191,2]
[401060724,1767897041829,-150.0,0.00014191,2]
[401060726,1767897041838,-150.0,0.00014191,2]
[401060728,1767897041848,-200.0,0.00014191,2]
[401060730,1767897041857,-150.0,0.00014191,2]
[401060732,1767897041866,-500.0,0.00014191,2]
[401060734,1767897041875,-500.0,0.00014191,2]
[401060736,1767897041885,-190.19225777,0.00014191,2]
[401060738,1767897041894,-500.0,0.00014191,2]
[401060740,1767897041907,-200.0,0.00014191,2]
[401060742,1767897041921,-150.0,0.00014191,2]
[401060744,1767897041936,-500.0,0.00014246,2]
[401060746,1767897041958,-500.0,0.00014246,2]
[401060748,1767897041969,-154.16094674,0.00014246,2]
[401060750,1767897041979,-150.0,0.00014246,2]
[401060752,1767897041988,-150.0,0.00014246,2]
[401060754,1767897041997,-150.0,0.00014246,2]
[401060756,1767897042007,-500.0,0.00014246,2]
[401060758,1767897042016,-500.0,0.00014246,2]
[401060760,1767897042025,-500.0,0.00014246,2]
[401060762,1767897042034,-200.0,0.00014246,2]
[401060764,1767897042044,-500.0,0.000143,2]
[401060766,1767897042053,-396.98457547,0.000143,2]
[401060768,1767897042062,-155.60141278,0.000143,2]
[401060770,1767897042071,-150.0,0.000143,2]
[401060772,1767897042080,-500.0,0.000143,2]
[401060774,1767897042089,-500.0,0.000143,2]
[401060776,1767897042098,-500.0,0.000143,2]
[401060778,1767897042108,-500.0,0.00014355,2]
[401060780,1767897042116,-224.78328857,0.00014355,2]
[401060782,1767897042125,-500.0,0.00014355,2]
[401060784,1767897042135,-500.0,0.00014355,2]
[401060786,1767897042145,-275.32921409,0.00014355,2]
[401060788,1767897042154,-500.0,0.0001441,2]
[401060790,1767897042165,-500.0,0.0001441,2]
[401060792,1767897042174,-500.0,0.0001441,2]
[401060794,1767897042183,-14136.36741063,0.00014411,2]
[401060796,1767897042192,-166.66,0.00014424,2]
[401060798,1767897042201,-433.0,0.00014438,2]
[401060800,1767897042210,-500.0,0.00014465,2]
[401060802,1767897042219,-500.0,0.00014465,2]
[401060804,1767897042229,-1336.36,0.00014504,2]
[401060806,1767897042238,-931.94,0.00014512,2]
[401060808,1767897042247,-500.0,0.00014512,2]
[401060810,1767897042256,-600.85,0.00014512,2]
[401060812,1767897042265,-281.3806178,0.0001452,2]
[401060814,1767897042274,-500.0,0.0001452,2]
[401060816,1767897042283,-151.0,0.00014563,2]
[401060818,1767897042292,-151.0,0.00014563,2]
[401060820,1767897042301,-151.0,0.00014569,2]
[401060822,1767897042311,-151.0,0.00014569,2]
[401060824,1767897042320,-500.0,0.00014574,2]
[401060826,1767897042329,-151.0,0.0001459,2]
[401060828,1767897042339,-151.0,0.0001459,2]
[401060830,1767897042348,-151.0,0.0001459,2]
[401060832,1767897042357,-151.0,0.0001459,2]
[401060834,1767897042366,-151.0,0.0001459,2]
[401060836,1767897042375,-76992.0,0.000146,2]
[401060838,1767897042384,-500.0,0.00014629,2]
[401060840,1767897042395,-500.0,0.00014684,2]
[401060842,1767897042405,-166.66,0.00014709,2]
[401060844,1767897042420,-7804.45255636,0.00014723,2]
[401060846,1767897042431,-2351.0,0.00014731,2]
[401060848,1767897042441,-500.0,0.00014739,2]
[401060850,1767897042450,-167.40518339,0.00014748,2]
[401060852,1767897042459,-500.0,0.00014762,2]
[401060854,1767897042467,-500.0,0.00014762,2]
[401060887,1767897042770,-500.0,0.00014762,2]
[401060889,1767897042779,-500.0,0.00014763,2]
[401060892,1767897042789,-500.0,0.00014763,2]
[401060895,1767897042798,-500.0,0.00014763,2]
[401060898,1767897042807,-500.0,0.00014763,2]
[401060900,1767897042817,-500.0,0.00014763,2]
[401060903,1767897042827,-500.0,0.00014763,2]
[401060906,1767897042836,-633.20600999,0.00014763,2]
[401060908,1767897042845,-500.0,0.00014763,2]
[401060910,1767897042855,-500.0,0.00014763,2]
[401060912,1767897042864,-500.0,0.00014763,2]
[401060914,1767897042873,-500.0,0.00014763,2]
[401060916,1767897042882,-500.0,0.00014763,2]
[401060918,1767897042891,-500.0,0.00014763,2]
[401060920,1767897042900,-500.0,0.00014763,2]
[401060922,1767897042909,-500.0,0.00014794,2]
[401060924,1767897042918,-1000.0,0.00014795,2]
[401060926,1767897042929,-500.0,0.00014848,2]
[401060928,1767897042938,-500.0,0.00014903,2]
[401060930,1767897042947,-14136.36741063,0.00014909,2]
[401060932,1767897042956,-500.0,0.00014958,2]
[401060934,1767897042965,-166.66,0.00014995,2]
[401060936,1767897042974,-522.0,0.00015013,2]
[401060938,1767897042983,-327.4,0.00015068,2]
[401060940,1767897042993,-5534.0,0.000153,3]
[401060942,1767897043002,-302.24106746,0.0001531,2]
[401060944,1767897043013,-1000.0,0.0001531,2]
[401060946,1767897043022,-1000.0,0.0001531,2]
[401060948,1767897043031,-1000.0,0.0001531,2]
[401060950,1767897043040,-505.81602002,0.0001531,2]
[401060952,1767897043049,-299.73155764,0.0001531,2]
[401060954,1767897043058,-1000.0,0.0001531,2]
[401060956,1767897043068,-379.40330386,0.0001531,2]
[401060958,1767897043077,-1000.0,0.0001531,2]
[401060960,1767897043086,-1000.0,0.0001531,2]
[401060962,1767897043095,-1000.0,0.0001531,2]
[401060964,1767897043104,-1000.0,0.0001531,2]
[401060966,1767897043113,-7804.45255636,0.00015359,2]
[401060969,1767897043123,-14136.36741063,0.00015408,2]
[401060971,1767897043132,-2443.11794413,0.0001564,2]
[401060972,1767897043141,-736.0,0.00015717,2]
[401060974,1767897043150,-157.72323008,0.00015843,2]
[401060977,1767897043160,-1500.0,0.00015858,2]
[401060979,1767897043169,-1500.0,0.00015858,2]
[401060980,1767897043179,-376.30281883,0.00015858,2]
[401060983,1767897043188,-1500.0,0.00015858,2]
[401060985,1767897043197,-821.61952287,0.00015858,2]
[401060987,1767897043206,-1500.0,0.00015858,2]
[401060988,1767897043215,-1500.0,0.00015858,2]
[401060990,1767897043224,-1487.99755872,0.00015858,2]
[401060992,1767897043233,-14136.36741063,0.00015906,2]
[401060994,1767897043242,-7804.45255636,0.00015994,2]
[401060996,1767897043251,-2530.57151643,0.00016,2]
[401060999,1767897043261,-170150.86275646,0.00016,2]
[401061000,1767897043270,-612.54961922,0.00016,2]
[401061002,1767897043279,-275834.57554727,0.00016,4]
[401061005,1767897043289,-5534.0,0.00016,5]
[401061007,1767897043299,-350.40168715,0.00016016,2]
[401061009,1767897043308,-250.0,0.00016045,2]
[401061011,1767897043318,-385.39614839,0.0001609,2]
[401061013,1767897043327,-151.0,0.00016097,2]
[401061015,1767897043336,-331687.22359661,0.000161,2]
[401061017,1767897043345,-9999.99,0.00016116,2]
[401061018,1767897043354,-13066.5894256,0.000162,5]
[401061020,1767897043363,-3292.0,0.00016204,2]
[401061022,1767897043372,-350.40168713,0.0001633,2]
[401061024,1767897043381,-200.0,0.0001634,2]
[401061026,1767897043391,-157.72323008,0.00016371,2]
[401061028,1767897043400,-162.0,0.000164,2]
[401061030,1767897043409,-162.0,0.000164,2]
[401061032,1767897043418,-833.0,0.000164,2]
[401061034,1767897043427,-833.0,0.000164,2]
[401061036,1767897043436,-833.0,0.000164,2]
[401061038,1767897043446,-833.0,0.000164,2]
[401061040,1767897043455,-162.0,0.000164,2]
[401061042,1767897043464,-833.0,0.000164,2]
[401061044,1767897043473,-162.0,0.000164,2]
[401061046,1767897043483,-833.0,0.000164,2]
[401061048,1767897043492,-833.0,0.000164,2]
[401061051,1767897043501,-14136.36741063,0.00016405,2]
[401061053,1767897043510,-2000.0,0.00016406,2]
[401061054,1767897043520,-2020.5636209,0.00016406,2]
[401061056,1767897043529,-2000.0,0.00016406,2]
[401061058,1767897043538,-476.3156368,0.00016406,2]
[401061060,1767897043547,-2000.0,0.00016406,2]
[401061062,1767897043556,-500.0,0.00016437,2]
[401061065,1767897043565,-446.86331983,0.00016437,2]
[401061067,1767897043575,-500.0,0.00016438,2]
[401061070,1767897043584,-500.0,0.00016438,2]
[401061072,1767897043593,-500.0,0.00016438,2]
[401061076,1767897043602,-500.0,0.00016438,2]
[401061080,1767897043612,-500.0,0.00016438,2]
[401061083,1767897043625,-500.0,0.00016438,2]
[401061086,1767897043634,-500.0,0.00016438,2]
[401061088,1767897043643,-500.0,0.00016438,2]
[401061091,1767897043653,-500.0,0.00016438,2]
[401061094,1767897043663,-500.0,0.00016438,2]
[401061097,1767897043672,-500.0,0.00016438,2]
[401061100,1767897043681,-500.0,0.00016438,2]
[401061103,1767897043691,-500.0,0.00016438,2]
[401061105,1767897043700,-500.0,0.00016438,2]
[401061107,1767897043709,-500.0,0.00016438,2]
[401061109,1767897043718,-500.0,0.00016438,2]
[401061111,1767897043728,-500.0,0.00016438,2]
[401061113,1767897043736,-500.0,0.00016438,2]
[401061115,1767897043745,-500.0,0.00016438,2]
[401061117,1767897043755,-500.0,0.00016438,2]
[401061119,1767897043764,-500.0,0.00016438,2]
[401061121,1767897043773,-500.0,0.00016438,2]
[401061123,1767897043782,-500.0,0.00016438,2]
[401061125,1767897043791,-500.0,0.00016438,2]
[401061127,1767897043800,-500.0,0.00016438,2]
[401061129,1767897043809,-500.0,0.00016438,2]
[401061131,1767897043819,-500.0,0.00016438,2]
[401061133,1767897043828,-500.0,0.00016438,2]
[401061135,1767897043837,-500.0,0.00016438,2]
[401061137,1767897043846,-500.0,0.00016438,2]
[401061139,1767897043855,-327.4,0.00016438,2]
[401061141,1767897043864,-800.0,0.00016438,2]
[401061143,1767897043873,-1000.0,0.00016439,2]
[401061145,1767897043882,-500.0,0.00016493,2]
[401061147,1767897043891,-3868.4,0.00016503,2]
[401061149,1767897043900,-931.94,0.00016513,2]
[401061151,1767897043909,-500.0,0.00016513,2]
[401061153,1767897043918,-600.85,0.00016513,2]
[401061155,1767897043927,-500.0,0.00016514,2]
[401061157,1767897043937,-275.30162004,0.00016514,2]
[401061159,1767897043946,-500.0,0.00016514,2]
[401061161,1767897043955,-500.0,0.00016514,2]
[401061163,1767897043965,-500.0,0.00016514,2]
[401061165,1767897043974,-500.0,0.00016514,2]
[401061167,1767897043984,-500.0,0.00016514,2]
[401061169,1767897043992,-151.0,0.00016514,2]
[401061171,1767897044001,-500.0,0.00016514,2]
[401061173,1767897044012,-500.0,0.00016514,2]
[401061175,1767897044021,-500.0,0.00016514,2]
[401061177,1767897044030,-500.0,0.00016514,2]
[401061179,1767897044038,-500.0,0.00016514,2]
[401061181,1767897044047,-500.0,0.00016514,2]
[401061183,1767897044056,-500.0,0.00016514,2]
[401061185,1767897044066,-201.93286099,0.00016514,2]
[401061186,1767897044075,-500.0,0.00016514,2]
[401061188,1767897044084,-500.0,0.00016514,2]
[401061190,1767897044094,-151.0,0.00016514,2]
[401061192,1767897044103,-500.0,0.00016514,2]
[401061194,1767897044113,-151.0,0.00016514,2]
[401061196,1767897044122,-578.20924308,0.00016514,2]
[401061198,1767897044131,-500.0,0.00016514,2]
[401061200,1767897044140,-162.7023203,0.00016514,2]
[401061202,1767897044149,-9211.34798985,0.00016514,2]
[401061205,1767897044169,-500.0,0.00016514,2]
[401061208,1767897044179,-300.0,0.00016514,2]
[401061210,1767897044190,-1500.0,0.00016514,2]
[401061212,1767897044200,-500.0,0.00016514,2]
[401061214,1767897044209,-1500.0,0.00016514,2]
[401061216,1767897044218,-500.0,0.00016514,2]
[401061218,1767897044227,-1500.0,0.00016514,2]
[401061220,1767897044237,-500.0,0.00016514,2]
[401061222,1767897044246,-1500.0,0.00016514,2]
[401061224,1767897044255,-500.0,0.00016514,2]
[401061226,1767897044264,-1500.0,0.00016514,2]
[401061228,1767897044273,-620.0,0.00016514,2]
[401061230,1767897044283,-500.0,0.00016514,2]
[401061232,1767897044291,-1500.0,0.00016514,2]
[401061234,1767897044301,-500.0,0.00016514,2]
[401061236,1767897044310,-1500.0,0.00016514,2]
[401061238,1767897044319,-260.34840278,0.00016514,2]
[401061240,1767897044328,-1500.0,0.00016514,2]
[401061242,1767897044338,-500.0,0.00016514,2]
[401061244,1767897044347,-1500.0,0.00016514,2]
[401061246,1767897044357,-500.0,0.00016514,2]
[401061248,1767897044366,-1500.0,0.00016514,2]
[401061250,1767897044376,-695.39793187,0.00016514,2]
[401061252,1767897044385,-500.0,0.00016514,2]
[401061253,1767897044395,-1500.0,0.00016514,2]
[401061256,1767897044404,-500.0,0.00016514,2]
[401061258,1767897044413,-1500.0,0.00016514,2]
[401061260,1767897044423,-500.0,0.00016514,2]
[401061262,1767897044433,-500.0,0.00016514,2]
[401061264,1767897044442,-500.0,0.00016514,2]
[401061265,1767897044452,-500.0,0.00016514,2]
[401061267,1767897044461,-500.0,0.00016514,2]
[401061269,1767897044471,-500.0,0.00016514,2]
[401061271,1767897044480,-500.0,0.00016514,2]
[401061274,1767897044490,-500.0,0.00016514,2]
[401061276,1767897044500,-500.0,0.00016514,2]
[401061278,1767897044509,-500.0,0.00016514,2]
[401061280,1767897044518,-500.0,0.00016514,2]
[401061282,1767897044531,-500.0,0.00016514,2]
[401061284,1767897044540,-500.0,0.00016514,2]
[401061286,1767897044550,-151.0,0.00016514,2]
[401061288,1767897044561,-322.6107,0.00016514,2]
[401061290,1767897044570,-2000.0,0.00016514,2]
[401061292,1767897044581,-2000.0,0.00016514,2]
[401061294,1767897044591,-2000.0,0.00016514,2]
[401061296,1767897044600,-2000.0,0.00016514,2]
[401061298,1767897044609,-2000.0,0.00016514,2]
[401061300,1767897044621,-2000.0,0.00016514,2]
[401061302,1767897044631,-2000.0,0.00016514,2]
[401061304,1767897044640,-2000.0,0.00016514,2]
[401061306,1767897044650,-2000.0,0.00016514,2]
[401061308,1767897044661,-2000.0,0.00016514,2]
[401061310,1767897044671,-2000.0,0.00016514,2]
[401061312,1767897044680,-2000.0,0.00016514,2]
[401061314,1767897044690,-250.0,0.00016514,2]
[401061316,1767897044701,-250.0,0.00016514,2]
[401061318,1767897044710,-250.0,0.00016514,2]
[401061320,1767897044720,-250.0,0.00016514,2]
[401061323,1767897044735,-250.0,0.00016514,2]
[401061325,1767897044744,-394.3952879,0.00016514,2]
[401061327,1767897044754,-500.0,0.00016548,2]
[401061329,1767897044765,-1316.20759869,0.00016569,2]
[401061331,1767897044775,-195.08159117,0.00016602,2]
[401061333,1767897044785,-7804.45255636,0.00016629,2]
[401061335,1767897044795,-3868.4,0.00016639,2]
[401061337,1767897044805,-350.40168713,0.00016644,2]
[401061339,1767897044815,-500.0,0.00016719,2]
[401061341,1767897044824,-833.0,0.0001672,2]
[401061343,1767897044834,-162.0,0.0001672,2]
[401061346,1767897044844,-833.0,0.0001672,2]
[401061348,1767897044853,-162.0,0.0001672,2]
[401061350,1767897044863,-833.0,0.0001672,2]
[401061352,1767897044873,-833.0,0.0001672,2]
[401061354,1767897044882,-833.0,0.0001672,2]
[401061356,1767897044892,-833.0,0.0001672,2]
[401061358,1767897044901,-162.0,0.0001672,2]
[401061360,1767897044911,-833.0,0.0001672,2]
[401061362,1767897044924,-833.0,0.0001672,2]
[401061364,1767897044934,-3868.4,0.00016775,2]
[401061366,1767897044948,-157.72323008,0.00016899,2]
[401061368,1767897044958,-3868.4,0.00016911,2]
[401061370,1767897044967,-469.50438451,0.00016937,2]
[401061372,1767897044976,-612.5496192,0.0001695,2]
[401061374,1767897044986,-2500.0,0.00016954,2]
[401061376,1767897044995,-2500.0,0.00016954,2]
[401061378,1767897045005,-2500.0,0.00016954,2]
[401061380,1767897045016,-350.40168713,0.00016958,2]
[401061382,1767897045026,-2600.0,0.00017,3]
[401061384,1767897045035,-250.0,0.00017,2]
[401061386,1767897045044,-160.0,0.00017,2]
[401061388,1767897045055,-4000.0,0.00017,2]
[401061390,1767897045064,-162.0,0.0001704,2]
[401061392,1767897045074,-833.0,0.0001704,2]
[401061394,1767897045083,-162.0,0.0001704,2]
[401061396,1767897045093,-833.0,0.0001704,2]
[401061398,1767897045103,-833.0,0.0001704,2]
[401061401,1767897045116,-833.0,0.0001704,2]
[401061403,1767897045126,-162.0,0.0001704,2]
[401061404,1767897045135,-833.0,0.0001704,2]
[401061406,1767897045145,-162.0,0.0001704,2]
[401061409,1767897045155,-833.0,0.0001704,2]
[401061411,1767897045165,-162.0,0.0001704,2]
[401061413,1767897045175,-162.0,0.0001704,2]
[401061415,1767897045186,-833.0,0.0001704,2]
[401061417,1767897045196,-162.0,0.0001704,2]
[401061419,1767897045206,-3868.4,0.00017047,2]
[401061421,1767897045215,-151.0,0.00017062,2]
[401061423,1767897045225,-293.26916709,0.00017062,2]
[401061425,1767897045235,-311.1,0.00017062,2]
[401061427,1767897045244,-151.0,0.00017062,2]
[401061429,1767897045254,-500.0,0.00017099,2]
[401061431,1767897045265,-1000.0,0.000171,2]
[401061433,1767897045274,-1252.0,0.00017117,2]
[401061435,1767897045284,-3868.4,0.00017183,2]